bitfinex-derivatives/quotes_BTCF0:USTF0_20241006
["timestamp","ask_amount","ask_price","bid_price","bid_amount"]
[1728175592252,0.426372,61949.0,61948.0,0.09589828]
[1728175592647,0.065572,61949.0,61948.0,0.09589828]
[1728175592951,0.426372,61949.0,61948.0,0.09589828]
[1728175593154,0.53815507,61949.0,61948.0,0.0004]
[1728175593546,0.17735507,61949.0,61948.0,0.0004]
[1728175593747,0.53815507,61949.0,61948.0,0.0004]
[1728175594051,0.53915507,61949.0,61948.0,0.0144]
[1728175594356,0.17835507,61949.0,61948.0,0.0144]
[1728175594556,0.53915507,61949.0,61948.0,0.0144]
[1728175594744,0.53915507,61949.0,61948.0,0.0274]
[1728175594944,0.17835507,61949.0,61948.0,0.0274]
[1728175595646,0.53915507,61949.0,61948.0,0.0274]
[1728175595843,0.48742666,61949.0,61948.0,0.0274]
[1728175596048,0.53915124,61949.0,61948.0,0.0274]
[1728175596346,0.17835124,61949.0,61948.0,0.0274]
[1728175596552,0.53915124,61949.0,61948.0,0.0274]
[1728175596947,0.17835124,61949.0,61948.0,0.0274]
[1728175597151,0.53915124,61949.0,61948.0,0.0274]
[1728175598054,0.17835124,61949.0,61948.0,0.0274]
[1728175598253,0.53915124,61949.0,61948.0,0.0274]
[1728175600758,0.47457924,61949.0,61948.0,0.0274]
[1728175601260,0.3628,61949.0,61948.0,0.12294621]
[1728175602661,0.427372,61949.0,61948.0,0.0274]
[1728175602865,0.064575,61946.0,61945.0,0.0113]
[1728175603162,0.064577,61944.0,61943.0,0.00961025]
[1728175603355,0.064578,61943.0,61942.0,0.0117]
[1728175603547,0.910098,61943.0,61942.0,0.0004]
[1728175603957,1.510098,61943.0,61942.0,0.0004]
[1728175605154,1.511098,61943.0,61942.0,0.0144]
[1728175605466,1.511098,61943.0,61942.0,0.0154]
[1728175605467,1.151298,61943.0,61942.0,0.0154]
[1728175605669,1.872898,61943.0,61942.0,0.0154]
[1728175609662,1.151298,61943.0,61942.0,0.0154]
[1728175609856,1.872898,61943.0,61942.0,0.0154]
[1728175610656,1.151298,61943.0,61942.0,0.0154]
[1728175610859,1.872898,61943.0,61942.0,0.0154]
[1728175613667,1.151298,61943.0,61942.0,0.0154]
[1728175613864,1.872898,61943.0,61942.0,0.0154]
[1728175614770,1.272898,61943.0,61942.0,0.0154]
[1728175616670,0.788578,61943.0,61942.0,0.0154]
[1728175618073,0.788578,61943.0,61942.0,0.1154]
[1728175623172,0.90191345,61943.0,61942.0,0.1154]
[1728175623367,0.90191867,61943.0,61942.0,0.1154]
[1728175626571,0.90191867,61943.0,61941.0,0.0004]
[1728175626874,0.32728204,61942.0,61941.0,0.1004]
[1728175627176,0.1831953,61942.0,61941.0,0.1004]
[1728175627772,0.1831953,61942.0,61941.0,0.1034]
[1728175628083,0.18125893,61942.0,61941.0,0.1034]
[1728175628586,0.32574567,61942.0,61941.0,0.1024]
[1728175628778,0.32674567,61942.0,61941.0,0.1034]
[1728175629075,0.11361041,61942.0,61941.0,0.16798]
[1728175629269,0.11361041,61942.0,61941.0,0.16598]
[1728175629270,0.11461041,61942.0,61941.0,0.16598]
[1728175629971,0.32773911,61942.0,61941.0,0.16598]
[1728175630167,0.25882382,61942.0,61941.0,0.16598]
[1728175630371,0.11461041,61942.0,61941.0,0.16598]
[1728175631278,0.11461041,61942.0,61941.0,0.26098356]
[1728175631279,0.0024,61942.0,61941.0,0.26098356]
[1728175631471,0.0024,61942.0,61941.0,0.16598]
[1728175631966,0.3612,61943.0,61942.0,0.064579]
[1728175632171,0.3059,61943.0,61942.0,0.064979]
[1728175632371,0.3059,61943.0,61942.0,0.15999376]
[1728175632890,0.3059,61943.0,61942.0,0.15996876]
[1728175633380,0.3059,61943.0,61942.0,0.24061019]
[1728175633788,0.3069,61943.0,61942.0,0.15996876]
[1728175634275,0.3079,61943.0,61942.0,0.15996876]
[1728175636473,0.3079,61943.0,61942.0,0.18520862]
[1728175636878,0.002,61943.0,61942.0,0.66952862]
[1728175637077,0.002,61943.0,61942.0,0.76642434]
[1728175637471,0.002,61943.0,61942.0,0.66933632]
[1728175637879,0.002,61943.0,61942.0,0.18501632]
[1728175638279,0.002,61943.0,61942.0,0.28191204]
[1728175638587,0.002,61943.0,61942.0,0.15977646]
[1728175638779,0.002,61943.0,61942.0,0.18501546]
[1728175639688,0.002,61943.0,61942.0,0.12043646]
[1728175639988,0.462978,61943.0,61942.0,0.0004]
[1728175642479,1.547298,61943.0,61941.0,0.0004]
[1728175642683,0.164581,61940.0,61938.0,0.0004]
[1728175642903,0.064584,61937.0,61936.0,0.02952751]
[1728175643081,0.164584,61937.0,61932.0,0.08438194]
[1728175643282,0.0004,61935.0,61932.0,0.08058194]
[1728175644388,0.0144,61935.0,61932.0,0.08058194]
[1728175644589,0.0284,61935.0,61932.0,0.08058194]
[1728175645498,0.0284,61935.0,61934.0,0.02881089]
[1728175646397,0.3892,61935.0,61934.0,0.02881089]
[1728175647891,0.3892,61935.0,61934.0,0.12881089]
[1728175650892,0.0284,61935.0,61934.0,0.12881089]
[1728175651088,0.3892,61935.0,61934.0,0.12881089]
[1728175651295,0.0284,61935.0,61934.0,0.12881089]
[1728175651495,0.3892,61935.0,61934.0,0.12881089]
[1728175662798,0.3892,61935.0,61934.0,0.02881089]
[1728175663909,0.0284,61935.0,61934.0,0.02881089]
[1728175664103,0.3892,61935.0,61934.0,0.02881089]
[1728175668423,0.3892,61935.0,61934.0,0.12410734]
[1728175672018,0.3892,61935.0,61934.0,0.22100306]
[1728175676128,0.3892,61935.0,61934.0,0.2210972]
[1728175678018,0.3892,61935.0,61934.0,0.12420148]
[1728175680727,0.3892,61935.0,61934.0,0.12431857]
[1728175683422,0.3892,61935.0,61934.0,0.02881089]
[1728175688424,0.3892,61935.0,61934.0,0.12881089]
[1728175690624,0.3892,61935.0,61934.0,0.22446269]
[1728175692020,0.3892,61935.0,61934.0,0.33856646]
[1728175692228,0.3892,61935.0,61934.0,0.40419925]
[1728175692825,0.3892,61935.0,61934.0,0.36380979]
[1728175693027,0.3892,61935.0,61934.0,0.40419913]
[1728175695243,0.3892,61935.0,61934.0,0.30419913]
[1728175695530,0.3892,61935.0,61934.0,0.22446269]
[1728175698227,0.0284,61935.0,61934.0,0.22446269]
[1728175698426,0.0284,61935.0,61934.0,0.12881089]
[1728175700030,0.0284,61935.0,61934.0,0.02881089]
[1728175705421,0.0284,61935.0,61934.0,0.1245197]
[1728175707738,0.0284,61935.0,61934.0,0.12465838]
[1728175709239,0.092987,61935.0,61934.0,0.22157205]
[1728175711843,0.0284,61935.0,61934.0,0.22157205]
[1728175713443,0.0284,61935.0,61934.0,0.02881089]
[1728175720448,0.0284,61935.0,61934.0,0.12466094]
[1728175723352,0.0284,61935.0,61934.0,0.12466629]
[1728175724054,0.0284,61935.0,61934.0,0.22157996]
[1728175733063,0.0284,61935.0,61934.0,0.22173223]
[1728175734756,0.0284,61935.0,61934.0,0.12481856]
[1728175735568,0.0284,61935.0,61934.0,0.02881089]
[1728175743556,0.0284,61935.0,61934.0,0.2217527]
[1728175746262,0.0284,61935.0,61934.0,0.22175391]
[1728175750155,0.0284,61935.0,61934.0,0.12484024]
[1728175752567,0.0284,61935.0,61934.0,0.221775]
[1728175755671,0.0284,61935.0,61934.0,0.22177484]
[1728175758567,0.0284,61935.0,61934.0,0.02881089]
[1728175763178,0.0284,61935.0,61934.0,0.07727747]
[1728175764472,0.0284,61935.0,61934.0,0.17727747]
[1728175765684,0.0284,61935.0,61934.0,0.22497493]
[1728175767869,0.0284,61935.0,61934.0,0.22503239]
[1728175772370,0.0284,61935.0,61934.0,0.12503239]
[1728175773681,0.0284,61935.0,61934.0,0.07727617]
[1728175774577,0.0284,61935.0,61934.0,0.02881089]
[1728175775576,0.0284,61935.0,61934.0,0.07727617]
[1728175775881,0.0284,61935.0,61934.0,0.02881089]
[1728175780587,0.0284,61935.0,61934.0,0.22214864]
[1728175783297,0.3892,61935.0,61934.0,0.22214864]
[1728175788782,0.3892,61935.0,61934.0,0.02881089]
[1728175794694,0.453787,61935.0,61934.0,0.02881089]
[1728175795689,0.453787,61935.0,61934.0,0.22229839]
[1728175799290,1.638187,61935.0,61934.0,0.0004]
[1728175799795,1.638187,61935.0,61934.0,0.04885378]
[1728175799981,1.66702247,61935.0,61934.0,0.04885378]
[1728175800187,1.66702247,61935.0,61934.0,0.0004]
[1728175801706,0.06459,61932.0,61931.0,0.06460095]
[1728175801893,0.16459,61932.0,61931.0,0.06460095]
[1728175802197,0.64939,61932.0,61931.0,0.06460095]
[1728175802393,0.064591,61931.0,61930.0,0.06460095]
[1728175802695,0.164991,61931.0,61930.0,0.06460095]
[1728175803787,0.064593,61929.0,61927.0,0.04840991]
[1728175803996,0.1004,61928.0,61927.0,0.04840991]
[1728175804701,0.4612,61928.0,61927.0,0.04840991]
[1728175805395,0.4762,61928.0,61926.0,0.04840991]
[1728175805598,0.3762,61928.0,61927.0,0.04840991]
[1728175805787,0.3762,61928.0,61927.0,0.08150991]
[1728175806793,0.3692,61928.0,61927.0,0.08150991]
[1728175807000,0.3752,61928.0,61927.0,0.08150991]
[1728175807398,0.3752,61928.0,61927.0,0.0331]
[1728175807596,0.3692,61928.0,61927.0,0.0331]
[1728175807798,0.3762,61928.0,61927.0,0.0331]
[1728175807995,0.015,61928.0,61927.0,0.0331]
[1728175808309,0.0004,61931.0,61927.0,0.12294658]
[1728175808501,0.0004,61931.0,61930.0,0.1004]
[1728175809405,0.0114,61931.0,61930.0,0.1004]
[1728175809996,0.0204,61931.0,61930.0,0.25483793]
[1728175810597,0.0144,61931.0,61930.0,0.25483793]
[1728175810794,0.0234,61931.0,61930.0,0.28767493]
[1728175812508,0.0234,61931.0,61930.0,0.28767196]
[1728175814210,0.0234,61931.0,61930.0,0.26242698]
[1728175816017,0.0234,61931.0,61930.0,0.35935755]
[1728175816311,0.0234,61931.0,61930.0,0.38912068]
[1728175817116,0.0234,61931.0,61930.0,0.38907516]
[1728175821515,0.0234,61931.0,61930.0,0.29214459]
[1728175822212,0.0234,61931.0,61930.0,0.41414744]
[1728175822419,0.0234,61931.0,61930.0,0.31738824]
[1728175824517,0.0234,61931.0,61930.0,0.414142]
[1728175825612,0.0234,61931.0,61930.0,0.31738824]
[1728175825913,0.07384092,61931.0,61930.0,0.22099878]
[1728175826718,0.07383855,61931.0,61930.0,0.22099878]
[1728175828217,0.07384103,61931.0,61930.0,0.22099878]
[1728175828619,0.0004,61937.0,61930.0,0.15640678]
[1728175828809,0.0004,61937.0,61936.0,0.164586]
[1728175829014,0.0004,61937.0,61936.0,0.19022965]
[1728175829213,0.0004,61937.0,61936.0,0.199486]
[1728175831022,0.0144,61937.0,61936.0,0.200486]
[1728175831616,0.0284,61937.0,61936.0,0.201486]
[1728175833729,0.0284,61937.0,61936.0,0.235986]
[1728175833930,0.0284,61937.0,61936.0,0.69291957]
[1728175834228,0.0284,61937.0,61936.0,0.80752802]
[1728175835230,0.0284,61937.0,61936.0,0.80751913]
[1728175835818,0.0284,61937.0,61936.0,0.77301913]
[1728175836431,0.0284,61937.0,61936.0,0.79825975]
[1728175836622,0.0284,61937.0,61936.0,0.68366019]
[1728175836819,0.0284,61937.0,61936.0,0.65841957]
[1728175837224,0.0284,61937.0,61936.0,0.68366005]
[1728175838125,0.0284,61937.0,61936.0,0.32286005]
[1728175838531,0.0284,61937.0,61936.0,0.80722005]
[1728175839828,0.0284,61937.0,61936.0,0.78197957]
[1728175840026,0.0284,61937.0,61936.0,0.80722013]
[1728175842024,0.0284,61937.0,61936.0,0.43764503]
[1728175842322,0.0284,61937.0,61936.0,0.32286013]
[1728175843337,0.0284,61937.0,61936.0,0.29761957]
[1728175843633,0.0284,61937.0,61936.0,0.32286027]
[1728175844526,0.0284,61937.0,61936.0,0.29761957]
[1728175846531,0.0284,61937.0,61936.0,0.41245445]
[1728175848936,0.0284,61937.0,61936.0,0.201486]
[1728175849534,0.0284,61937.0,61936.0,0.101486]
[1728175849735,0.0284,61937.0,61936.0,0.201486]
[1728175849736,0.07895228,61937.0,61936.0,0.201486]
[1728175851545,0.07895228,61937.0,61936.0,0.22672684]
[1728175854032,0.07895228,61937.0,61936.0,0.201486]
[1728175854237,0.07895228,61937.0,61936.0,0.22672709]
[1728175855151,0.07895228,61937.0,61936.0,0.201486]
[1728175855838,0.0284,61937.0,61936.0,0.41322263]
[1728175857438,0.0284,61937.0,61936.0,0.43846383]
[1728175859548,0.0284,61937.0,61936.0,0.41322263]
[1728175860350,0.0284,61937.0,61936.0,0.41340096]
[1728175862239,0.0284,61937.0,61936.0,0.29816422]
[1728175862648,0.0284,61937.0,61936.0,0.39504671]
[1728175863639,0.0284,61937.0,61936.0,0.39505516]
[1728175863846,0.0284,61937.0,61936.0,0.201486]
[1728175866254,0.0284,61937.0,61936.0,0.22672749]
[1728175866451,0.0284,61937.0,61936.0,0.02764149]
[1728175866652,0.13718867,61937.0,61936.0,0.0024]
[1728175867149,0.26813872,61937.0,61936.0,0.0024]
[1728175867349,0.26813872,61937.0,61932.0,0.0113]
[1728175867350,0.48436,61936.0,61932.0,0.0113]
[1728175867556,0.164589,61933.0,61932.0,0.0113]
[1728175867747,0.164589,61933.0,61928.0,0.0113]
[1728175867748,0.27377767,61933.0,61928.0,0.0113]
[1728175867946,0.0004,61931.0,61928.0,0.0113]
[1728175868157,0.10918867,61931.0,61928.0,0.0113]
[1728175868365,0.10918867,61931.0,61929.0,0.1]
[1728175869354,0.05074646,61931.0,61929.0,0.1]
[1728175870353,0.06274646,61931.0,61930.0,0.03116313]
[1728175870741,0.06274646,61931.0,61930.0,0.13116313]
[1728175870946,0.06274646,61931.0,61930.0,0.22809902]
[1728175870947,0.0124,61931.0,61930.0,0.22809902]
[1728175871150,0.0124,61931.0,61930.0,0.22909902]
[1728175871151,0.0214,61931.0,61930.0,0.22909902]
[1728175874661,0.0214,61931.0,61930.0,0.32586345]
[1728175874849,0.0214,61931.0,61930.0,0.22909902]
[1728175875246,0.0214,61931.0,61930.0,0.32586182]
[1728175875960,0.0214,61931.0,61930.0,0.32585859]
[1728175876462,0.0214,61931.0,61930.0,0.32585599]
[1728175877752,0.0214,61931.0,61930.0,0.22909902]
[1728175877960,0.0214,61931.0,61930.0,0.32585519]
[1728175878956,0.0214,61931.0,61930.0,0.13216313]
[1728175883152,0.0124,61931.0,61930.0,0.13116313]
[1728175883463,0.0134,61931.0,61930.0,0.13116313]
[1728175884159,0.0124,61931.0,61930.0,0.13116313]
[1728175884461,0.0024,61931.0,61930.0,0.04416313]
[1728175884759,0.066991,61931.0,61930.0,0.04416313]
[1728175885958,0.066991,61931.0,61930.0,0.12479512]
[1728175888065,0.427791,61931.0,61930.0,0.12479512]
[1728175889460,0.066991,61931.0,61930.0,0.12479512]
[1728175889661,0.427791,61931.0,61930.0,0.12479512]
[1728175889866,0.066991,61931.0,61930.0,0.12479512]
[1728175890259,0.427791,61931.0,61930.0,0.04416313]
[1728175890463,0.427791,61931.0,61930.0,0.14416313]
[1728175890762,0.066991,61931.0,61930.0,0.14416313]
[1728175890962,0.427791,61931.0,61930.0,0.14416313]
[1728175891165,0.427791,61931.0,61930.0,0.32183958]
[1728175891564,0.427791,61931.0,61930.0,0.24120759]
[1728175891880,0.3632,61931.0,61930.0,0.24120759]
[1728175893355,0.3632,61931.0,61930.0,0.14120759]
[1728175893553,0.3632,61931.0,61930.0,0.22186623]
[1728175893868,1.512191,61931.0,61930.0,0.014]
[1728175894070,1.56194016,61931.0,61930.0,0.014]
[1728175896559,0.47754016,61931.0,61930.0,0.014]
[1728175901174,0.427791,61931.0,61930.0,0.014]
[1728175904763,0.912191,61931.0,61930.0,0.07853486]
[1728175904964,0.912191,61931.0,61930.0,0.014]
[1728175906172,1.272991,61931.0,61930.0,0.014]
[1728175907978,0.788591,61931.0,61930.0,0.014]
[1728175911683,0.066991,61931.0,61930.0,0.014]
[1728175911990,0.788591,61931.0,61930.0,0.014]
[1728175912478,0.066991,61931.0,61930.0,0.014]
[1728175912786,0.788591,61931.0,61930.0,0.014]
[1728175916777,0.427791,61931.0,61930.0,0.014]
[1728175919590,0.066991,61931.0,61930.0,0.014]
[1728175920681,0.427791,61931.0,61930.0,0.014]
[1728175920987,0.47750004,61931.0,61930.0,0.014]
[1728175921784,0.83830004,61931.0,61930.0,0.014]
[1728175923980,0.788591,61931.0,61930.0,0.014]
[1728175925690,0.066991,61931.0,61930.0,0.014]
[1728175925892,0.427791,61931.0,61930.0,0.014]
[1728175926092,0.066991,61931.0,61930.0,0.014]
[1728175926292,0.427791,61931.0,61930.0,0.014]
[1728175927891,0.066991,61931.0,61930.0,0.014]
[1728175928194,0.427791,61931.0,61930.0,0.014]
[1728175930582,0.066991,61931.0,61930.0,0.014]
[1728175930785,0.427791,61931.0,61930.0,0.014]
[1728175932603,0.066991,61931.0,61930.0,0.014]
[1728175932796,0.427791,61931.0,61930.0,0.014]
[1728175936401,0.47734967,61931.0,61930.0,0.014]
[1728175936798,0.11654967,61931.0,61930.0,0.014]
[1728175937299,0.47734967,61931.0,61930.0,0.014]
[1728175938893,0.11654967,61931.0,61930.0,0.014]
[1728175939096,0.427791,61931.0,61930.0,0.09465864]
[1728175939602,0.427791,61931.0,61930.0,0.014]
[1728175940004,0.427791,61931.0,61930.0,0.09465864]
[1728175941009,0.066991,61931.0,61930.0,0.09465864]
[1728175941214,0.427791,61931.0,61930.0,0.09465864]
[1728175942199,0.427791,61931.0,61930.0,0.19210904]
[1728175942400,0.066991,61931.0,61930.0,0.19210904]
[1728175942810,0.427791,61931.0,61930.0,0.19210904]
[1728175943305,0.427791,61931.0,61930.0,0.19211497]
[1728175946205,0.427791,61931.0,61927.0,0.01420819]
[1728175946206,0.064593,61929.0,61927.0,0.01420819]
[1728175946403,0.17304943,61928.0,61927.0,0.01420819]
[1728175946607,0.53384943,61928.0,61927.0,0.01420819]
[1728175947303,0.53384943,61928.0,61927.0,0.01920819]
[1728175947504,0.17304943,61928.0,61927.0,0.01920819]
[1728175947701,0.54784943,61928.0,61927.0,0.01920819]
[1728175948309,0.3752,61928.0,61927.0,0.01920819]
[1728175948616,0.48080781,61928.0,61927.0,0.01920819]
[1728175948809,0.55940181,61928.0,61927.0,0.01420819]
[1728175949008,0.453794,61928.0,61927.0,0.01420819]
[1728175949409,0.55939248,61928.0,61927.0,0.01420819]
[1728175950103,0.19859248,61928.0,61927.0,0.01420819]
[1728175950308,0.55939248,61928.0,61927.0,0.01420819]
[1728175950508,0.19859248,61928.0,61927.0,0.01420819]
[1728175950913,0.55939248,61928.0,61927.0,0.01420819]
[1728175951411,0.624004,61928.0,61927.0,0.01420819]
[1728175953107,0.263204,61928.0,61927.0,0.01420819]
[1728175953502,0.624004,61928.0,61927.0,0.01420819]
[1728175953816,0.62388245,61928.0,61927.0,0.01420819]
[1728175954404,0.453794,61928.0,61927.0,0.11229483]
[1728175955123,0.092994,61928.0,61927.0,0.11229483]
[1728175955308,0.453794,61928.0,61927.0,0.11229483]
[1728175957912,0.092994,61928.0,61927.0,0.11229483]
[1728175958433,0.453794,61928.0,61927.0,0.11229483]
[1728175958620,0.453794,61928.0,61927.0,0.11229739]
[1728175960511,0.092994,61928.0,61927.0,0.11229739]
[1728175960707,0.453794,61928.0,61927.0,0.11229739]
[1728175961308,0.092994,61928.0,61927.0,0.11229739]
[1728175961513,0.453794,61928.0,61927.0,0.11229739]
[1728175963115,0.453794,61928.0,61927.0,0.0980892]
[1728175968231,0.453794,61928.0,61927.0,0.17894085]
[1728175969425,0.064596,61926.0,61925.0,0.02888976]
[1728175969622,0.064996,61926.0,61923.0,0.033]
[1728175969926,0.0004,61924.0,61923.0,0.033]
[1728175971117,0.0004,61924.0,61923.0,0.06262426]
[1728175972129,0.0144,61924.0,61923.0,0.06262426]
[1728175972630,0.0284,61924.0,61923.0,0.06262426]
[1728175972922,0.0284,61924.0,61923.0,0.1110874]
[1728175975728,0.0284,61924.0,61923.0,0.06262426]
[1728175976534,0.3892,61924.0,61923.0,0.16084606]
[1728175977131,0.0284,61924.0,61923.0,0.16084606]
[1728175977627,0.3892,61924.0,61923.0,0.16084606]
[1728175979532,0.0284,61924.0,61923.0,0.16084606]
[1728175979732,0.3892,61924.0,61923.0,0.16084606]
[1728175980839,0.0284,61924.0,61923.0,0.16084606]
[1728175981038,0.3892,61924.0,61923.0,0.16084606]
[1728175981528,0.0284,61924.0,61923.0,0.16084606]
[1728175982239,0.3892,61924.0,61923.0,0.16084606]
[1728175982439,0.0284,61924.0,61923.0,0.16084606]
[1728175982936,0.3892,61924.0,61923.0,0.16084606]
[1728175983141,0.0284,61924.0,61923.0,0.16084606]
[1728175983533,0.3892,61924.0,61923.0,0.16084606]
[1728175983734,0.0284,61924.0,61923.0,0.16084606]
[1728175984134,0.3892,61924.0,61923.0,0.16084606]
[1728175984436,0.43788677,61924.0,61923.0,0.06262426]
[1728175985142,0.07708677,61924.0,61923.0,0.06262426]
[1728175985340,0.43788677,61924.0,61923.0,0.06262426]
[1728175985540,0.07708677,61924.0,61923.0,0.06262426]
[1728175985735,0.07708768,61924.0,61923.0,0.06262426]
[1728175985940,0.43788768,61924.0,61923.0,0.06262426]
[1728175986943,0.07708768,61924.0,61923.0,0.06262426]
[1728175987140,0.43788768,61924.0,61923.0,0.06262426]
[1728175987339,0.07708768,61924.0,61923.0,0.06262426]
[1728175987534,0.43788768,61924.0,61923.0,0.06262426]
[1728175987933,0.07708768,61924.0,61923.0,0.06262426]
[1728175988339,0.43788768,61924.0,61923.0,0.06262426]
[1728175988538,0.07708768,61924.0,61923.0,0.06262426]
[1728175988842,0.43788768,61924.0,61923.0,0.06262426]
[1728175989745,0.07708768,61924.0,61923.0,0.06262426]
[1728175990339,0.43788768,61924.0,61923.0,0.06262426]
[1728175990845,0.4378987,61924.0,61923.0,0.06262426]
[1728175991047,0.4378987,61924.0,61923.0,0.16262426]
[1728175991547,0.3892,61924.0,61923.0,0.37798589]
[1728175992943,0.0284,61924.0,61923.0,0.37798589]
[1728175993442,0.3892,61924.0,61923.0,0.37798589]
[1728175993648,0.0284,61924.0,61923.0,0.37798589]
[1728175993851,0.3892,61924.0,61923.0,0.37798589]
[1728175996050,0.0284,61924.0,61923.0,0.37798589]
[1728175996251,0.3892,61924.0,61923.0,0.37798589]
[1728175996738,0.0284,61924.0,61923.0,0.37798589]
[1728175997240,0.3892,61924.0,61923.0,0.37798589]
[1728176004939,0.3892,61924.0,61923.0,0.37830237]
[1728176006644,0.3892,61924.0,61923.0,0.21109069]
[1728176009551,0.3892,61924.0,61923.0,0.16262426]
[1728176011449,0.0284,61924.0,61923.0,0.16262426]
[1728176011650,0.0284,61924.0,61923.0,0.71170326]
[1728176011847,0.01222663,61924.0,61923.0,0.71170326]
[1728176012353,0.0004,61928.0,61927.0,0.064595]
[1728176012656,0.0004,61928.0,61927.0,0.19837775]
[1728176013245,0.0004,61928.0,61927.0,0.26294553]
[1728176013649,0.0144,61928.0,61927.0,0.26294553]
[1728176014661,0.0284,61928.0,61927.0,0.414212]
[1728176016459,0.01062876,61928.0,61927.0,0.414212]
[1728176017153,0.0004,61931.0,61930.0,0.064592]
[1728176017354,0.0004,61931.0,61930.0,0.28824763]
[1728176017758,0.0038,61938.0,61930.0,0.19841004]
[1728176018054,0.3612,61939.0,61936.0,0.1004]
[1728176018256,0.3612,61939.0,61936.0,0.22365321]
[1728176018460,0.3612,61939.0,61936.0,0.28823821]
[1728176018659,0.0004,61939.0,61937.0,0.45881004]
[1728176018866,0.0004,61939.0,61938.0,0.2850098]
[1728176019253,0.0004,61939.0,61938.0,0.1879718]
[1728176019450,0.0004,61939.0,61938.0,0.28466239]
[1728176020260,0.0004,61939.0,61938.0,0.1879718]
[1728176021168,0.0004,61939.0,61938.0,0.17672944]
[1728176021463,0.0004,61939.0,61938.0,0.20197004]
[1728176021666,0.05718856,61939.0,61938.0,0.1042236]
[1728176021865,0.0004,61939.0,61938.0,0.1042236]
[1728176022165,0.05718856,61939.0,61938.0,0.1042236]
[1728176022354,0.10610995,61939.0,61938.0,0.1042236]
[1728176022552,0.10610995,61939.0,61938.0,0.62345506]
[1728176022754,0.08671141,61939.0,61938.0,0.08385506]
[1728176022960,0.08671141,61939.0,61938.0,0.74843806]
[1728176023764,0.0481145,61939.0,61938.0,0.14843806]
[1728176023966,0.0481145,61939.0,61938.0,0.74843806]
[1728176024266,0.0491145,61939.0,61938.0,0.117983]
[1728176024464,0.0491145,61939.0,61938.0,0.104983]
[1728176024855,0.0491145,61939.0,61938.0,0.704983]
[1728176025055,0.0621145,61939.0,61938.0,0.698983]
[1728176025653,0.0621145,61939.0,61938.0,0.098983]
[1728176025858,0.0621145,61939.0,61938.0,0.583343]
[1728176026153,0.0621145,61939.0,61938.0,1.183343]
[1728176026359,0.0621145,61939.0,61938.0,1.544143]
[1728176028463,0.06209201,61939.0,61938.0,1.544143]
[1728176028763,0.014,61939.0,61938.0,1.64228454]
[1728176033162,0.014,61939.0,61938.0,1.544143]
[1728176033360,0.014,61939.0,61938.0,1.64226866]
[1728176035758,0.014,61939.0,61938.0,1.60986866]
[1728176036661,0.014,61939.0,61938.0,1.511743]
[1728176038061,0.014,61939.0,61938.0,1.150943]
[1728176038658,0.014,61939.0,61938.0,0.550943]
[1728176040477,0.06209702,61939.0,61938.0,0.550943]
[1728176043567,0.014,61939.0,61938.0,0.550943]
[1728176043766,0.014,61939.0,61938.0,0.76641886]
[1728176045962,0.014,61939.0,61938.0,0.28205886]
[1728176046267,0.014,61939.0,61938.0,0.28237815]
[1728176051174,0.014,61939.0,61938.0,0.28267115]
[1728176051471,0.014,61939.0,61938.0,0.41910978]
[1728176052368,0.014,61939.0,61938.0,0.44434952]
[1728176054075,0.014,61939.0,61938.0,0.41910978]
[1728176054275,0.014,61939.0,61938.0,0.44434953]
[1728176055874,0.014,61939.0,61938.0,0.44436404]
[1728176057572,0.014,61939.0,61938.0,0.41912429]
[1728176057780,0.014,61939.0,61938.0,0.44436425]
[1728176058666,0.11823228,61939.0,61938.0,0.09182296]
[1728176062375,0.11823228,61939.0,61938.0,0.066583]
[1728176063172,0.11823228,61939.0,61938.0,0.09182249]
[1728176064973,0.11823228,61939.0,61938.0,0.066583]
[1728176065480,0.11830857,61939.0,61938.0,0.09182249]
[1728176066769,0.11830857,61939.0,61938.0,0.44437454]
[1728176066770,0.014,61939.0,61938.0,0.44437454]
[1728176067376,0.014,61939.0,61938.0,0.55743467]
[1728176069881,0.014,61939.0,61938.0,0.55792922]
[1728176070580,0.014,61939.0,61938.0,0.52129467]
[1728176070892,0.014,61939.0,61938.0,0.59335614]
[1728176071482,0.014,61939.0,61938.0,0.34365154]
[1728176072779,0.014,61939.0,61938.0,0.24365154]
[1728176072987,0.014,61939.0,61938.0,0.34365154]
[1728176073688,0.014,61939.0,61938.0,0.45671167]
[1728176073893,0.014,61939.0,61938.0,0.12723949]
[1728176074081,0.06209353,61939.0,61938.0,0.12723949]
[1728176074977,0.06206806,61939.0,61938.0,0.12723949]
[1728176075295,0.06206806,61939.0,61938.0,0.102]
[1728176075597,0.06206806,61939.0,61938.0,0.1272398]
[1728176079186,0.06206806,61939.0,61938.0,0.102]
[1728176079591,0.06206806,61939.0,61938.0,0.12724028]
[1728176079789,0.06200651,61939.0,61938.0,0.12724028]
[1728176081789,0.014,61939.0,61938.0,0.34379738]
[1728176082186,0.014,61939.0,61938.0,0.3185571]
[1728176082492,0.014,61939.0,61938.0,0.34379738]
[1728176083590,0.014,61939.0,61938.0,0.45685751]
[1728176083995,0.014,61939.0,61938.0,0.34379738]
[1728176084387,0.014,61939.0,61938.0,0.3185571]
[1728176089192,0.014,61939.0,61938.0,0.49620023]
[1728176089382,0.014,61939.0,61938.0,0.49643844]
[1728176090797,0.014,61939.0,61938.0,0.63330398]
[1728176090992,0.014,61939.0,61938.0,0.49643844]
[1728176091189,0.014,61939.0,61938.0,0.63329871]
[1728176091390,0.014,61939.0,61938.0,0.65853861]
[1728176091692,0.014,61939.0,61938.0,0.65853962]
[1728176092290,0.014,61939.0,61938.0,0.65854418]
[1728176092490,0.014,61939.0,61938.0,0.52167841]
[1728176092789,0.014,61939.0,61938.0,0.65854154]
[1728176094200,0.014,61939.0,61938.0,0.30488317]
[1728176094511,0.014,61939.0,61938.0,0.65851551]
[1728176096406,0.014,61939.0,61938.0,0.54545538]
[1728176096902,0.014,61939.0,61938.0,0.19182304]
[1728176097297,0.11754857,61939.0,61938.0,0.19182304]
[1728176098894,0.11754857,61939.0,61938.0,0.166583]
[1728176099291,0.11751806,61939.0,61938.0,0.166583]